Cogmind - Beta 17 @@@ ROGUE MODE // 2026.06.23 @ 10:32:33 Player: ThatBishHoly Result: Destroyed by Y-45 Defender with Beam Rifle Performance ------------- Evolutions (1) 500 Regions Visited (3) 600 Robots Destroyed (34) 170 Value Destroyed (663) 663 Prototype IDs (0) 0 Alien Tech Used (0) 0 Bonus (0) 0 TOTAL SCORE: 1933 Bonus ------- None Cogmind --------- Core Integrity 0/400 Matter 156/300 Energy 265/265 System Corruption 1% Temperature Cool (9) Movement Treading (160) Location -9/Storage Parts ------- > --- POWER (1) -------- Improved Ion Engine > --- PROPULSION (4) --- Improved Treads Improved Treads Improved Treads Improved Treads > --- UTILITY (2) ------ High-capacity Storage Unit > --- WEAPON (2) ------- Rocket Launcher Flail > --- INVENTORY (20) --- Improved Ion Engine Improved Treads EM Pulse Gun Beam Rifle Heavy Assault Rifle Autogun Autogun Rocket Launcher Maul Peak State ------------ > --- POWER ------------ Improved Ion Engine > --- PROPULSION ------- Improved Treads Improved Treads Improved Treads Improved Treads > --- UTILITY ---------- High-capacity Storage Unit > --- WEAPON ----------- Rocket Launcher Maul > --- INVENTORY -------- Improved Treads EM Pulse Gun Beam Rifle Heavy Assault Rifle Autogun Autogun Rocket Launcher Flail [Rating: 16] Favorites ----------- Power Light Ion Engine Engine Light Ion Engine Power Core Light Nuclear Core Propulsion Aluminum Leg Treads Improved Treads Leg Aluminum Leg Flight Unit Flight Unit Utility Improved Terrain Scanner Device Improved Terrain Scanner Storage High-capacity Storage Unit Processor Transport Network Coupler Weapon EM Pulse Gun Energy Gun EM Pulse Gun Ballistic Gun Light Assault Rifle Ballistic Cannon Improved Light Cannon Launcher Rocket Launcher Special Weapon Mining Laser Impact Weapon Maul Build | -11 -10 -9 -9 ------- Run | Yrd Mat Mat Sto Slots Evolved 2 | . . 2 . Power . | . . . . Propulsion 2 | . . 2 . Utility . | . . . . Weapon . | . . . . Parts Attached 34 | 7 7 3 17 Power 5 | 1 1 . 3 Engine 4 | 1 . . 3 Core 1 | . 1 . . Reactor . | . . . . Propulsion 15 | 2 2 . 11 Treads 4 | . . . 4 Leg 9 | 2 2 . 5 Wheel . | . . . . Hover . | . . . . Flight 2 | . . . 2 Utility 4 | 2 . 1 1 Device 2 | 2 . . . Storage 1 | . . . 1 Processor 1 | . . 1 . Hackware . | . . . . Protection . | . . . . Artifact . | . . . . Weapon 10 | 2 4 2 2 Energy Gun 3 | 1 2 . . Energy Cannon . | . . . . Ballistic Gun 2 | . 2 . . Ballistic Cannon 1 | . . 1 . Launcher 1 | . . . 1 Special Weapon 1 | 1 . . . Impact Weapon 2 | . . 1 1 Slashing Weapon . | . . . . Piercing Weapon . | . . . . Special Melee Weapon . | . . . . Unidentified Prototypes . | . . . . Parts Lost 9 | . 2 5 2 Power 2 | . . 1 1 Propulsion 3 | . . 2 1 Utility 2 | . . 2 . Weapon 2 | . 2 . . Highest Loss Streak 4 | . 2 4 1 To Critical Strikes . | . . . . Average Backups 3 | 2 2 4 5 Power . | . . . . Propulsion . | . . . . Utility . | 1 . . . Weapon 2 | 1 1 3 4 Tool/Special . | . . . . Unused Backups 8 | 1 1 . 6 Power 1 | 1 . . . Propulsion 2 | . 1 . 1 Utility . | . . . . Weapon 5 | . . . 5 Tool/Special . | . . . . Average Slot Usage (%) 73 | . 99 53 59 Engine 7 | . 7 5 8 Core 3 | . 6 4 . Treads 1 | . . . 4 Leg 20 | . 28 6 22 Device 13 | . 28 8 . Storage 2 | . . . 6 Processor 1 | . . 5 1 Energy Gun 9 | . 15 12 1 Ballistic Gun 3 | . 7 . . Ballistic Cannon 1 | . . 5 . Launcher 1 | . . . 3 Special Weapon 1 | . 4 . . Impact Weapon 5 | . . 4 11 Peak Build Rating 16 | 9 11 12 16 Average Rating 8 | 4 9 7 9 On Entrance 6 | . 9 11 5 Avg Prop Armor Cover (%) . | . . . . Naked Turns . | . . . . Heaviest Build 54 | 8 11 13 54 Greatest Support 92 | 20 20 20 92 Greatest Overweight (x) 4 | . . 4 2 Average Overweight (x) . | . . 1 . Largest Inventory Capacity 20 | 5 5 5 20 Average Capacity 7 | 5 5 5 14 Most Carried 12 | 5 5 5 12 Average Carried 3 | 2 2 4 5 Final Capacity 20 | 5 5 5 20 Final Carried 9 | 1 4 4 9 Class Distribution -------------------- 76% | Mutant 23% | Scavenger-Mutant Dominant Class ---------------- Mutant | -10/Materials Mutant | -9/Materials Mutant | -9/Storage Resources | -11 -10 -9 -9 ----------- Run | Yrd Mat Mat Sto Matter Collected 620 | 270 82 96 172 Remotely . | . . . . Salvage Created 881 | 196 310 79 296 Parts 49 | 13 16 8 12 Haulers Intercepted 1 | . 1 . . Recyclers Shooed . | . . . . Parts Field Recycled . | . . . . Retrieved Matter . | . . . . Parts Self-Destructed . | . . . . Prevented . | . . . . Parts Restored . | . . . . Kills | -11 -10 -9 -9 ------- Run | Yrd Mat Mat Sto Combat Hostiles Destroyed 24 | . 8 5 11 Melee 5 | . . . 5 Guns 8 | . 8 . . Cannons 5 | . . 5 . AOE 1 | . . . 1 Classes Destroyed 7 | 3 3 1 . Worker 3 | 1 . . 2 Tunneler 5 | 5 . . . Hauler 1 | . 1 . . Recycler 1 | 1 . . . Swarmer 12 | . 3 3 6 Grunt 6 | . 5 . 1 Sentry 6 | . . 2 4 Best Kill Streak 4 | 2 3 3 4 Combat Bots Only 4 | . 3 3 4 Max Kills in Single Turn 1 | 1 1 1 1 Gunslinging . | . . . . Exploded 1 | . . . 1 Melee 1 | . . . 1 Uniques/NPCs Destroyed . | . . . . Combat | -11 -10 -9 -9 -------- Run | Yrd Mat Mat Sto Hostile Shots Fired 175 | . 50 28 97 Missed 50 | . 11 7 32 Hits 125 | . 39 21 65 Projectile 125 | . 39 21 65 Critical Strikes 2 | . 1 . 1 Damage Taken 1732 | . 413 534 785 Core 511 | . 99 197 215 Absorbed by Shields . | . . . . Core Remaining (%) 80 | 100 60 . . Volleys Fired 106 | 30 38 30 8 Largest 2 | 1 2 2 1 Hottest 80 | 50 80 73 33 Shots Fired 123 | 30 55 31 7 Gun 87 | 30 55 2 . Cannon 29 | . . 29 . Launcher 7 | . . . 7 Special . | . . . . Kinetic 61 | . 32 29 . Thermal 51 | 30 21 . . Explosive 7 | . . . 7 Electromagnetic 4 | . 2 2 . Robot Hit Streak 8 | 3 8 5 8 Robot Miss Streak 5 | 5 3 3 2 Penetration Max . | . . . . Secondary Targets . | . . . . Shots Hit Robots 82 | 13 28 17 24 Core Hits 40 | 8 16 7 9 Critical Kills 2 | . . . 2 Critical Parts Destroyed 5 | . . . 5 Critical Strikes 9 | 1 . 1 7 Burn 1 | 1 . . . Blast 1 | . . 1 . Smash 7 | . . . 7 Melee Attacks 36 | . . 4 32 Impact 36 | . . 4 32 Slashing . | . . . . Piercing . | . . . . Sneak Attacks 4 | . . 1 3 Combat Hostiles . | . . . . Follow-up Attacks . | . . . . Damage Inflicted 1811 | 191 286 366 968 Guns 486 | 188 286 12 . Cannons 304 | . . 304 . Explosions 110 | . . . 110 Melee 908 | . . 50 858 Ramming 3 | 3 . . . Kinetic 427 | . 123 304 . Thermal 351 | 188 163 . . Explosive 110 | . . . 110 Electromagnetic 12 | . . 12 . Impact 908 | . . 50 858 Slashing . | . . . . Piercing . | . . . . Highest Corruption 1 | . 1 1 1 Average Corruption 1 | . 1 1 1 Corruption Purged . | . . . . Corruption Blocked . | . . . . Effects 10 | . 2 1 7 Message Errors 2 | . . 1 1 Matter Fused 2 | . 1 . 1 Heat Flow Errors 2 | . 1 . 1 Energy Discharges 1 | . . . 1 Parts Rejected 1 | . . . 1 Alerts 1 | . . . 1 Weapon Failures 1 | . . . 1 Overload Shots . | . . . . Overflow Damage 355 | . . . 355 Projectiles . | . . . . Explosions . | . . . . Melee 355 | . . . 355 Knockbacks 2 | . . 1 1 Impact 1 | . . . 1 Kinetic 1 | . . 1 . Secondary . | . . . . Self-Inflicted Damage 37 | . . . 37 Shots 4 | . . . 4 Rammed . | . . . . Targets Rammed 1 | 1 . . . Kicked 1 | 1 . . . Crushed . | . . . . Highest Temperature 193 | 50 170 4 193 Average Temperature 36 | 13 48 2 82 Received Heat Transfer 429 | . 174 54 201 Siege Activations . | . . . . Martial Activations . | . . . . Shielding Activations . | . . . . Robots Disrupted . | . . . . Combat Hostiles . | . . . . Robots Corrupted 6 | . . . 6 Combat Hostiles 5 | . . . 5 Parts Fried 7 | . . . 7 Impact Corruptions 12 | . . . 12 Robots Melted . | . . . . Combat Hostiles . | . . . . Parts Melted 1 | 1 . . . Heat Transferred 1110 | 629 481 . . Parts Sabotaged . | . . . . Parts Stolen . | . . . . Parts Stripped . | . . . . Power Chain Reactions . | . . . . Alert | -11 -10 -9 -9 ------- Run | Yrd Mat Mat Sto Maximum Alert Level . | . . . . Low Security (%) 100 | 100 100 100 100 Level 1 . | . . . . Level 2 . | . . . . Level 3 . | . . . . Level 4 . | . . . . Level 5 . | . . . . High Security . | . . . . Max Security . | . . . . Peak Influence 175 | 10 120 70 175 Initial 17 | . . 17 . Average 56 | 1 61 20 108 Influence Increases 802 | 35 246 133 388 Destroy 0b10 Robot/C 480 | . 160 100 220 Destroy 0b10 Robot/NC 50 | 35 5 . 10 Destroy Leader 122 | . 32 30 60 Successful Hack 16 | . 4 . 12 Disable Machine 15 | . 15 . . Destroy Structure 29 | . . 3 26 Lose Combat Pursuer 90 | . 30 . 60 Influence Decreases 644 | 35 203 176 230 Entered New Map 26 | . . 26 . Time Decay 537 | 35 183 109 210 Lost Part 81 | . 20 41 20 Squads Dispatched 5 | . 1 . 4 Investigation 1 | . 1 . . Extermination . | . . . . Reinforcement 1 | . . . 1 Assault . | . . . . Garrison 3 | . . . 3 Intercept . | . . . . Searches Triggered . | . . . . Construction Impeded . | . . . . Haulers Reinforced . | . . . . Active Scanning Responses . | . . . . Cargo Convoy Interrupts . | . . . . Stealth | -11 -10 -9 -9 --------- Run | Yrd Mat Mat Sto Distress Signals 2 | . 1 . 1 Communications Jammed . | . . . . Distress Signals . | . . . . Times Spotted 33 | . 11 6 16 Peak Tracking Total 7 | . 7 3 4 Tactical Retreats 5 | . 1 . 4 Traps | -11 -10 -9 -9 ------- Run | Yrd Mat Mat Sto Traps Triggered 1 | . . . 1 Indirectly . | . . . . Trap Hack Attempts . | . . . . Triggered . | . . . . Disarmed . | . . . . Reprogrammed . | . . . . Reused . | . . . . Traps Extracted . | . . . . Installed . | . . . . Triggered . | . . . . Machines | -11 -10 -9 -9 ---------- Run | Yrd Mat Mat Sto Machines Disabled 1 | . 1 . . Max in Single Turn 1 | . 1 . . Machines Repaired . | . . . . Machines Dismantled . | . . . . Machines Sabotaged . | . . . . Overloaded Fab Kills . | . . . . Hacking | -11 -10 -9 -9 --------- Run | Yrd Mat Mat Sto Machines Accessed 8 | . 4 . 4 Terminals 6 | . 3 . 3 Fabricators . | . . . . Repair Stations 1 | . . . 1 Recycling Units 1 | . 1 . . Scanalyzers . | . . . . Garrison Access . | . . . . Total Hacks 20 | . 12 . 8 Successful 6 | . 3 . 3 Failed 14 | . 9 . 5 Catastrophic 2 | . 2 . . Database Lockouts . | . . . . Manual 16 | . 10 . 6 Terminals 15 | . 9 . 6 Fabricators . | . . . . Repair Stations 2 | . . . 2 Recycling Units 3 | . 3 . . Scanalyzers . | . . . . Garrison Access . | . . . . Terminal Hacks 1 | . . . 1 Open Door 1 | . . . 1 Fabricator Hacks . | . . . . Repair Station Hacks . | . . . . Recycling Unit Hacks 1 | . 1 . . Report Inventory 1 | . 1 . . Scanalyzer . | . . . . Garrison Access Hacks . | . . . . Unauthorized Hacks 4 | . 2 . 2 Terminals 4 | . 2 . 2 Botnet 4 | . 2 . 2 Fabricators . | . . . . Repair Stations . | . . . . Recycling Units . | . . . . Scanalyzers . | . . . . Garrison Access . | . . . . Data Cores Recovered . | . . . . Used . | . . . . Hacking Detections 7 | . 3 . 4 Full Trace Events 3 | . 3 . . Feedback Events 1 | . 1 . . Corruption 1 | . 1 . . Feedback Blocked . | . . . . Robot Schematics Acquired . | . . . . Robots Built . | . . . . Authchips . | . . . . Time . | . . . . Total Robot Build Rating . | . . . . Part Schematics Acquired . | . . . . Parts Built . | . . . . Authchips . | . . . . Time . | . . . . Total Part Build Rating . | . . . . Part Studies Acquired . | . . . . Parts Repaired . | . . . . Time . | . . . . Parts Recycled . | . . . . Recycled Matter . | . . . . Retrieved Matter . | . . . . Retrieved Components . | . . . . Parts Scanalyzed . | . . . . Part Schematics Acquired . | . . . . Parts Damaged . | . . . . Bothacking | -11 -10 -9 -9 ------------ Run | Yrd Mat Mat Sto Used RIF Installer . | . . . . Robots Hacked . | . . . . Non-combat . | . . . . Combat . | . . . . Robot Hacks Applied . | . . . . Relay Couplers Released . | . . . . Fabnet Peak Effective % . | . . . . Robots Rewired . | . . . . Allies Hacked . | . . . . Hacks Repelled . | . . . . Allies | -11 -10 -9 -9 -------- Run | Yrd Mat Mat Sto Total Allies . | . . . . Largest Group . | . . . . Highest-Rated Group . | . . . . Highest-Rated Ally . | . . . . Total Orders . | . . . . Ally Attacks . | . . . . Total Damage . | . . . . Kills . | . . . . Allies Corrupted . | . . . . Allies Melted . | . . . . Intel | -11 -10 -9 -9 ------- Run | Yrd Mat Mat Sto Active Infowar (turns) 955 | 29 539 347 40 Terrain 715 | 29 539 147 . Seismic 714 | 28 539 147 . T.N.C. 240 | . . 200 40 Robot Analysis Total . | . . . . Derelict Logs Recovered . | . . . . Drone Launches . | . . . . Drone Recoveries . | . . . . Exploration | -11 -10 -9 -9 ------------- Run | Yrd Mat Mat Sto Turns Passed 1633 | 249 539 364 481 Spaces Moved 860 | 148 283 194 235 Core 199 | 8 . 121 70 Treads 22 | . . . 22 Legs 626 | 140 283 73 130 Wheels . | . . . . Hover . | . . . . Flight 13 | . . . 13 Fastest Speed 37 | 50 120 100 37 Average Speed 130 | 116 120 146 139 Slowest Speed 250 | 120 120 250 190 Overloaded Moves . | . . . . Propulsion Burnouts . | . . . . Robots Hopped . | . . . . Potential Cave-ins . | . . . . Cave-ins Triggered 1 | . . 1 . Exploration Rate (%) 27 | 6 39 17 46 Regions Visited 3 Branch Regions 1 Pre-discovered Areas . | . . . . Known Exits Taken . | . . . . Unknown Exits Taken 3 | 1 1 1 . Scrap Searched . | . . . . Spaces Dug 3 | . . 3 . Terrain Destroyed 64 | . . 3 61 Melee 1 | . . 1 . Projectile 2 | . . 2 . AOE 61 | . . . 61 Terrain Rammed . | . . . . Walls Destroyed . | . . . . Machines Disabled . | . . . . Actions | -11 -10 -9 -9 --------- Run | Yrd Mat Mat Sto Total 1181 | 195 433 235 318 Wait 97 | . 95 . 2 Move 857 | 147 282 193 235 Hop . | . . . . Pick Up 34 | 9 8 3 14 Fast Attach 7 | . . . 7 Attach 17 | 7 2 3 5 Detach . | . . . . Swap 12 | . 5 1 6 Drop 14 | 1 3 1 9 Fire 106 | 30 38 30 8 Melee 36 | . . 4 32 Ram . | . . . . Kick 1 | 1 . . . Crush . | . . . . Escape Stasis . | . . . . Rewire . | . . . . Trap . | . . . . Miscellaneous . | . . . . Route ------- -11/Scrapyard -10/Materials -9/Materials -9/Storage History --------- Turn | Location | Event 7 | -11/Scrapyard | Discovered new exit (range 15) 250 | -11/Scrapyard | Entered Materials 308 | -10/Materials | Build established: Mutant 616 | -10/Materials | Discovered new exit (range 10) 789 | -10/Materials | Entered another Materials area 789 | -9/Materials | Evolved 2 slots: Propulsion x2 847 | -9/Materials | Build established: Scavenger-Mutant 876 | -9/Materials | Crushed by falling debris 962 | -9/Materials | Discovered new exit (range 10) 970 | -9/Materials | Lost 4 parts (1p1n2u) 1153 | -9/Materials | Entered Storage 1201 | -9/Storage | Core integrity fell below 50% 1226 | -9/Storage | Build established: Mutant 1333 | -9/Storage | Garrison activated, responded to threat 1366 | -9/Storage | Core integrity fell below 20% 1634 | -9/Storage | Destroyed by Y-45 Defender with Beam Rifle Last Messages --------------- 01555_ Imp. Aluminum Leg destroyed. 01560_ Y-45 Defender suffers critical hit (Smash). 01560_ Destroyed Imp. Ion Engine. 01560_ Y-45 Defender system corrupted by crushing effect. 01561_ Y-45 Defender system terminally corrupted. 01561_ Heat Sink fried. 01566_ Acquired Imp. Treads. 01576_ R-06 Scavenger collects Corrupted Lgt. Treads. 01578_ Acquired Imp. Treads. 01583_ Acquired Flail. 01589_ Dropped Imp. Aluminum Leg. 01596_ Acquired Imp. Ion Engine. 01596_ R-06 Scavenger collects Imp. Aluminum Leg. 01600_ Acquired Imp. Ion Engine. 01604_ ALERT: Hostiles spotted, dispatching reinforcements to Terminal S003. 01616_ K-01 Serf cleans the Terminal. 01619_ R-06 Scavenger inserts Lgt. Assault Rifle into recycling unit. 01622_ R-06 Scavenger inserts Corrupted Lgt. Treads into recycling unit. 01625_ R-06 Scavenger inserts Imp. Aluminum Leg into recycling unit. Map ----- +----------------------------------------------------+ | ######## # #?# " " +????????????? | | ## # "T" """ """ #?# "G" [ #????????????? | | ## + """ """ #?# """ ##????????????? | | """"" ## # """ """ ### #?????????????? | | """"" +%% # = + #?????????????? | | """"" ## ## * = ####"T"### #?????????????? | | ## ### ############??#####?? #?????????????? | | +#######+#####???????????????????? #?????????????? | | %## #?????????????????????? #?????????????? | | ## #?????????????????????? #?????????????? | | % # #?????????????????????? #?????????????? | | + #??? ????????????????+??????????????? | | # #??# ???????????????????????????????? | | # # #??# ??????????????????????????????? | | # # #??# #??????????????????????????????? | | # + #??# #??????????????????????????????? | | # # #??# #??????????????????????????????? | | # ############# #?????? #??????????????????????? | | # #?????? #??????????????????????? | | # ########+#### #######+###????????????????????? | | # # # # #????????????????????? | | # # T # # """ #????????????????????? | | # ### [[ # # """ "Y" ##???????????????????? | | # [! """ + + """ " "Y #???????????????????? | | # """ # # """ #????????????????????? | | " # """ # + """ @ #????????????????????? | | # # # """ #????????????????????? | | " ]# + # r ! #????????????????????? | | !############+############????????????????????? | | #####??????# #???????????????????????????? | | ???????????#"" #???????????????????????????? | | ???????????#"T #???????????????????????????? | | ???????????#""% #???????????????????????????? | | ??????????## ** #???????????????????????????? | | ??????????# #???????????????????????????? | | ??????????## = #???????????????????????????? | | ???????????# #???????????????????????????? | | ???????????###########???????????????????????????? | | ?????????????????????????????????????????????????? | | ?????????????????????????????????????????????????? | | ?????????????????????????????????????????????????? | | ?????????????????????????????????????????????????? | | ?????????????????????????????????????????????????? | | ?????????????????????????????????????????????????? | | ?????????????????????????????????????????????????? | | | | | | | | | | | +----------------------------------------------------+ Best States ------------- Heat Dissipation 28 Energy Generation 14 Energy Capacity 265 Matter Stores 300 Matter Capacity 300 Sight Range 16 Terrain Scan Range 16 Terrain Scan Density 10 Evasion (%) 62 Recoil Reduction 4 Item Schematics ----------------- None Robot Schematics ------------------ None Fabricated ------------ Nothing Repaired ---------- Nothing Studied --------- None Alien Tech Used ----------------- None Achievements -------------- Overwhelming Resistances Are Futile Challenges ------------ None Game ------ Seed SpliceLargeRedistributor Manual? 0 Play Time 00:20:06 Cumulative 88.1 hours Start 2026.06.23 @ 10:11:54 End 2026.06.23 @ 10:32:33 Sessions 1 Manual Loads 0 Difficulty Rogue Special Mode None Game No. 259 Rogue 259 Adventurer 0 Explorer 0 Win Type - Total 0 Types 0/0/0/0/0/0/0/0/0/0 Lore% 23 Gallery% 37 Achievement% 19 Wizard Run 0 Options --------- Layout 0 ASCII 0 Keyboard 0 Movement Mouse Keybinds 0 Fullscreen 1 Font 12/Smallcaps Map View 38x28 Zoom Use 100% Tactical HUD 1 Map Filters NONE Filters NONE Steam SD RUN: c5d6ce95-4424-41f4-abe7-05e4070e8a6d